bitfinex-derivatives/quotes_ETHF0:USTF0_20250817
["timestamp","ask_amount","ask_price","bid_price","bid_amount"]
[1755431808849,3.2078,4551.6,4551.0,0.5623]
[1755431809052,3.3768,4551.6,4551.5,1.1598]
[1755431809256,3.3768,4551.6,4551.5,1.4098]
[1755431809451,0.2046,4551.5,4551.2,0.25]
[1755431809758,0.3736,4551.3,4551.2,0.25]
[1755431810258,0.169,4551.1,4551.0,0.4918]
[1755431810459,3.5814,4551.1,4550.6,0.2418]
[1755431810658,0.169,4550.8,4550.7,1.0541]
[1755431811066,0.3736,4550.8,4550.7,1.0541]
[1755431811855,0.3736,4550.8,4550.6,0.3557]
[1755431811856,3.2078,4551.1,4551.0,1.4098]
[1755431812057,20.564,4552.7,4551.6,0.5623]
[1755431812058,3.2078,4551.7,4551.6,0.5623]
[1755431812259,3.2078,4551.7,4551.6,1.4098]
[1755431812658,3.3768,4551.7,4551.6,0.4918]
[1755431812965,3.5814,4551.7,4551.6,0.4918]
[1755431813159,3.5814,4551.7,4551.6,1.0541]
[1755431813366,4.22862887,4551.7,4551.6,1.0541]
[1755431813665,4.02402887,4551.7,4551.6,1.4098]
[1755431814363,4.22862887,4551.7,4551.6,1.0541]
[1755431814762,4.02402887,4551.7,4551.6,1.4098]
[1755431815663,3.2078,4552.3,4551.6,3.5623]
[1755431815966,3.2078,4552.3,4552.2,1.4098]
[1755431816159,3.4861376,4552.3,4552.2,1.4098]
[1755431816560,3.6551376,4552.3,4552.2,1.4098]
[1755431816863,0.2265,4551.3,4549.3,0.43941]
[1755431817064,0.169,4550.3,4550.2,1.0541]
[1755431817368,0.27829972,4550.3,4550.2,1.4098]
[1755431817661,1.28381704,4550.3,4550.2,1.0541]
[1755431818266,1.07921704,4550.3,4550.2,1.4098]
[1755431818565,3.2078,4550.6,4550.2,1.4098]
[1755431818768,3.2078,4550.6,4550.5,1.168]
[1755431819066,3.2078,4550.6,4550.5,1.4098]
[1755431819965,3.2078,4551.1,4550.5,0.5623]
[1755431820171,3.2078,4551.1,4551.0,1.4098]
[1755431823173,31.63,4552.3,4551.5,1.4098]
[1755431823174,3.2078,4551.6,4551.5,1.4098]
[1755431823565,3.2078,4552.1,4551.5,0.5623]
[1755431823764,3.2078,4552.1,4552.0,1.4098]
[1755431824066,3.2078,4552.6,4552.0,0.5623]
[1755431824269,3.6214,4552.6,4552.5,0.8123]
[1755431824473,3.7874,4552.6,4552.1,0.3557]
[1755431824667,1.222,4552.3,4552.2,0.8041]
[1755431824869,1.4778,4552.3,4552.2,0.8041]
[1755431825765,1.4778,4552.3,4552.2,1.0541]
[1755431825972,0.4136,4552.3,4552.2,1.4098]
[1755431826273,3.2078,4552.6,4552.5,0.5623]
[1755431826473,3.2078,4552.6,4552.5,1.4098]
[1755431827474,3.2078,4553.1,4553.0,1.4098]
[1755431827664,3.6214,4553.1,4553.0,1.4098]
[1755431827866,4.0069,4553.1,4553.0,1.4098]
[1755431828076,3.6214,4553.1,4553.0,1.4098]
[1755431828271,3.2078,4553.1,4553.0,1.4098]
[1755431830373,0.0219,4552.5,4551.2,3.4578]
[1755431830567,0.6424,4551.7,4550.9,0.25]
[1755431830770,1.30565463,4551.6,4551.5,0.319]
[1755431830965,1.69115463,4551.6,4551.5,1.0541]
[1755431831177,0.63195463,4551.6,4551.5,4.0541]
[1755431831369,3.8379,4552.7,4552.6,1.0541]
[1755431831570,0.3855,4553.3,4552.7,0.4918]
[1755431831878,1.4778,4553.3,4553.2,0.319]
[1755431832179,1.4778,4553.3,4552.9,0.2418]
[1755431832378,1.0923,4553.1,4553.0,0.2418]
[1755431832585,0.4136,4552.8,4552.7,0.8108]
[1755431832877,1.222,4552.8,4552.7,0.8108]
[1755431833182,1.222,4552.8,4552.7,0.9918]
[1755431834578,1.4778,4552.8,4552.7,0.8108]
[1755431834979,0.5796,4552.5,4552.4,0.4022]
[1755431835182,1.4778,4552.5,4552.4,0.5608]
[1755431835382,1.4778,4552.5,4552.4,0.8108]
[1755431836684,1.4778,4552.5,4552.4,0.5608]
[1755431837181,1.4778,4552.5,4552.4,0.8108]
[1755431838374,1.4778,4552.5,4552.4,1.2286]
[1755431838883,3.2078,4552.9,4552.4,1.2286]
[1755431838884,3.2078,4552.9,4552.4,0.5558]
[1755431839080,3.9944,4552.9,4552.8,1.0431]
[1755431839280,3.9944,4552.9,4552.8,1.2241]
[1755431839481,3.2078,4552.9,4552.8,1.2241]
[1755431840285,3.6288,4552.9,4552.8,1.2241]
[1755431840685,3.9944,4552.9,4552.8,1.2241]
[1755431843188,3.85253577,4552.9,4552.8,1.2241]
[1755431843493,4.0772104,4552.9,4552.8,1.2241]
[1755431843788,4.07721621,4552.9,4552.8,1.2241]
[1755431844091,4.33581621,4552.9,4552.8,1.2241]
[1755431844292,4.49821621,4552.9,4552.8,1.2241]
[1755431844487,5.27591621,4552.9,4552.8,1.2241]
[1755431844690,5.53591621,4552.9,4552.8,1.2241]
[1755431844886,5.27591621,4552.9,4552.8,1.2241]
[1755431845390,5.03171621,4552.9,4552.8,1.2241]
[1755431846293,5.53591621,4552.9,4552.8,1.2241]
[1755431847497,5.53591621,4552.9,4552.2,0.43913]
[1755431847699,5.53591621,4552.9,4552.7,1.2241]
[1755431847700,1.45831621,4552.8,4552.7,1.2241]
[1755431847892,2.06811621,4552.8,4552.7,1.2241]
[1755431848596,2.32811621,4552.8,4552.7,1.2241]
[1755431849102,1.65601621,4552.8,4552.7,1.2241]
[1755431849305,2.06811621,4552.8,4552.7,1.2241]
[1755431850203,2.32811621,4552.8,4552.7,1.2241]
[1755431851703,2.32811621,4552.8,4552.7,0.8156]
[1755431851904,2.32811621,4552.8,4552.7,1.2241]
[1755431852499,2.32870742,4552.8,4552.7,1.2241]
[1755431852802,2.32871651,4552.8,4552.7,1.2241]
[1755431853404,2.32871651,4552.8,4552.7,0.8063]
[1755431853599,0.421,4552.3,4552.2,1.0431]
[1755431853800,1.65661651,4552.3,4552.2,1.2241]
[1755431856608,1.90081651,4552.3,4552.2,1.2241]
[1755431856805,1.65661651,4552.3,4551.6,3.2078]
[1755431857007,2.07275976,4552.2,4552.1,0.8063]
[1755431857206,1.68398074,4552.2,4552.1,0.8063]
[1755431857401,2.33129436,4552.2,4552.1,0.1578]
[1755431857702,0.5889,4552.0,4551.9,0.2507]
[1755431857908,0.5889,4551.8,4551.7,0.9873]
[1755431858107,0.59088074,4551.8,4551.7,1.2241]
[1755431858309,1.42424263,4551.8,4551.7,1.2241]
[1755431858607,1.68424263,4551.8,4551.7,1.2241]
[1755431858811,1.68424263,4551.8,4551.7,0.9873]
[1755431859006,2.33188885,4551.8,4551.7,0.9873]
[1755431859510,2.33188009,4551.8,4551.7,0.9873]
[1755431859706,2.33188009,4551.8,4551.7,0.8063]
[1755431859907,2.33188009,4551.8,4551.7,1.2241]
[1755431860310,2.07188009,4551.8,4551.7,1.2241]
[1755431860609,2.33188009,4551.8,4551.7,1.2241]
[1755431861312,1.68424263,4551.8,4551.7,1.2241]
[1755431861512,1.68425144,4551.8,4551.7,1.2241]
[1755431861913,1.68425269,4551.8,4551.7,1.2241]
[1755431862219,0.5889,4551.6,4551.5,0.2507]
[1755431862414,1.68425269,4551.6,4551.5,0.2507]
[1755431862716,1.68425269,4551.6,4551.5,0.8063]
[1755431864413,1.68425269,4551.6,4551.5,1.2241]
[1755431865610,0.22555269,4551.6,4551.5,1.2241]
[1755431869521,3.6253,4552.5,4552.4,0.5993]
[1755431869714,5.51473221,4552.5,4552.4,1.2637]
[1755431870517,5.29995397,4552.5,4552.4,1.2637]
[1755431870719,5.51472561,4552.5,4552.4,1.2637]
[1755431871117,5.51472564,4552.5,4552.4,1.2637]
[1755431871317,5.51473323,4552.5,4552.4,1.2637]
[1755431873823,5.51499838,4552.5,4552.4,1.2637]
[1755431874122,5.51499838,4552.5,4552.4,0.8291]
[1755431876622,0.59,4552.0,4551.9,1.0149]
[1755431876822,1.66084441,4552.0,4551.9,1.2637]
[1755431877523,0.21504441,4552.0,4551.9,1.2637]
[1755431877720,0.21504441,4552.1,4551.9,1.03846]
[1755431877917,0.21504441,4552.0,4551.9,1.03846]
[1755431878218,0.21504441,4552.0,4551.9,1.70286]
[1755431878419,0.21504441,4552.0,4551.9,1.03846]
[1755431878917,0.21504441,4552.0,4551.9,1.70286]
[1755431879119,0.4175,4552.0,4551.9,1.03846]
[1755431879323,0.46274441,4552.0,4551.9,1.03846]
[1755431879522,0.21504441,4552.0,4551.9,1.03846]
[1755431879825,0.6055,4552.2,4552.1,1.2637]
[1755431880029,0.82059819,4552.2,4552.1,1.2637]
[1755431880218,0.82059893,4552.2,4552.1,1.2637]
[1755431881125,0.99039893,4552.2,4552.1,1.2637]
[1755431882925,1.66089893,4552.2,4552.1,1.2637]
[1755431884126,0.59,4551.7,4551.6,0.8291]
[1755431884320,1.4458,4551.7,4551.6,1.01]
[1755431884526,1.4458,4551.7,4551.6,1.70288]
[1755431885022,1.2001,4551.7,4551.6,1.70288]
[1755431885422,0.9478,4551.7,4551.6,1.70288]
[1755431885824,0.7753,4551.7,4551.6,1.70288]
[1755431886023,0.6055,4551.7,4551.6,1.70288]
[1755431888425,0.2457,4552.4,4552.0,0.43915]
[1755431888626,0.7753,4552.1,4552.0,1.70285]
[1755431888826,0.99041615,4552.1,4552.0,1.70285]
[1755431889529,0.99041615,4552.1,4552.0,1.2637]
[1755431890028,0.46281615,4552.1,4552.0,1.2637]
[1755431890426,0.21511615,4552.1,4552.0,1.2637]
[1755431890631,1.4458,4552.4,4552.3,1.2637]
[1755431890821,2.30753861,4552.4,4552.3,1.2637]
[1755431891130,2.30753866,4552.4,4552.3,1.2637]
[1755431891626,0.8558,4552.3,4552.0,0.43915]
[1755431891830,1.4458,4552.1,4552.0,1.03355]
[1755431892024,1.66093761,4552.1,4552.0,1.21445]
[1755431892224,1.66093761,4552.1,4552.0,1.70285]
[1755431892528,1.66095064,4552.1,4552.0,1.70285]
[1755431892729,1.41525064,4552.1,4552.0,1.70285]
[1755431893031,0.21515064,4552.1,4552.0,1.70285]
[1755431893227,1.088,4552.9,4552.8,0.5993]
[1755431893426,1.9495473,4552.9,4552.8,1.2637]
[1755431893724,1.9495473,4552.9,4552.8,0.8291]
[1755431893928,2.3073473,4552.9,4552.8,0.8291]
[1755431897332,2.28622396,4552.9,4552.8,0.8291]
[1755431897833,2.28621903,4552.9,4552.8,0.8291]
[1755431899437,1.43041903,4552.9,4552.6,0.2539]
[1755431899633,1.64745119,4552.8,4552.7,0.8294]
[1755431899830,1.64745119,4552.8,4552.7,1.0103]
[1755431900030,0.5717,4552.6,4552.5,1.2685]
[1755431900230,1.4535,4552.6,4552.5,1.2685]
[1755431901128,1.4535,4552.6,4552.5,1.4494]
[1755431901326,1.4535,4552.6,4552.5,1.0103]
[1755431905541,1.4535,4552.6,4552.5,0.8294]
[1755431905942,1.4535,4552.6,4552.5,1.0103]
[1755431906537,0.6469,4553.0,4552.5,0.9907]
[1755431906737,0.5535,4553.0,4552.9,0.3405]
[1755431906943,1.64285732,4553.0,4552.9,0.8294]
[1755431907137,2.03145732,4553.0,4552.9,0.8294]
[1755431907444,0.5717,4552.8,4552.7,0.4889]
[1755431907746,1.0649,4552.6,4552.5,0.8294]
[1755431907940,1.2186,4552.6,4552.5,1.2446]
[1755431908141,1.4535,4552.6,4552.5,0.5944]
[1755431908340,1.4535,4552.6,4552.5,0.8294]
[1755431908944,1.4535,4552.6,4552.5,1.0103]
[1755431911757,1.4535,4552.6,4552.4,0.43911]
[1755431911958,0.5717,4552.6,4552.5,0.8294]
[1755431912162,0.5717,4552.6,4552.5,1.0103]
[1755431912658,1.4535,4552.6,4552.5,1.2446]
[1755431913453,0.8028,4552.6,4552.5,1.2446]
[1755431913660,1.4535,4552.6,4552.5,1.2446]
[1755431915455,1.4535,4552.6,4552.5,0.8294]
[1755431915652,1.0649,4552.3,4552.2,0.8294]
[1755431915849,1.4535,4552.3,4552.2,0.2539]
[1755431916151,0.76263152,4552.3,4552.0,0.2539]
[1755431916349,1.4535,4552.1,4552.0,0.5755]
[1755431916860,1.4535,4552.1,4552.0,1.2446]
[1755431917660,1.4535,4552.1,4552.0,0.8294]
[1755431917853,1.4535,4552.1,4552.0,1.0103]
[1755431918053,1.4535,4552.1,4552.0,0.8294]
[1755431918454,1.4535,4552.1,4552.0,1.0103]
[1755431918655,1.4535,4552.1,4552.0,1.2446]
[1755431922253,0.2531,4552.1,4552.0,1.2446]
[1755431922459,0.8028,4552.4,4552.3,0.5748]
[1755431922659,0.8028,4552.4,4552.3,1.2446]
[1755431922660,0.19099571,4552.4,4552.3,1.2446]
[1755431922858,4.2727,4553.1,4553.0,1.0103]
[1755431923156,5.10932209,4553.1,4553.0,1.0103]
[1755431923350,5.49792209,4553.1,4553.0,1.0103]
[1755431923551,4.04442209,4553.1,4553.0,1.03297258]
[1755431923755,4.04442209,4553.1,4553.0,1.68366]
[1755431923963,3.39879893,4553.1,4553.0,1.68366]
[1755431924358,4.04049893,4553.1,4553.0,1.68366]
[1755431924659,4.20159119,4553.1,4553.0,1.68366]
[1755431925562,4.45989119,4553.1,4553.0,1.68366]
[1755431927455,0.2531,4553.1,4553.0,1.68366]
[1755431927661,0.3879,4553.4,4553.2,1.02993]
[1755431927863,0.19100865,4553.3,4553.2,1.02993]
[1755431928064,0.3879,4553.4,4553.2,1.53663]
[1755431928262,0.3879,4553.4,4553.3,1.2784]
[1755431928465,0.57887487,4553.4,4553.3,1.2784]
[1755431928867,0.83367487,4553.4,4553.3,1.2784]
[1755431929364,0.8034,4553.4,4553.3,1.2784]
[1755431929563,1.0446,4553.4,4553.3,1.2784]
[1755431929966,1.2966,4553.4,4553.3,1.2784]
[1755431931961,0.2548,4553.4,4553.3,1.2784]
[1755431932161,0.4155,4553.5,4553.4,0.85]
[1755431932362,0.4155,4553.5,4553.4,1.2783]
[1755431932567,1.4646,4553.5,4553.4,1.2783]
[1755431938372,1.2126,4553.5,4553.4,1.2783]
[1755431938572,1.0446,4553.5,4553.4,1.2783]
[1755431938768,0.8034,4553.5,4553.4,1.2783]
[1755431939170,1.0446,4553.5,4553.4,1.2783]
[1755431939369,1.4646,4553.5,4553.4,1.2783]
[1755431939570,1.4646,4553.5,4553.1,0.43904]
[1755431939571,0.3879,4553.4,4552.7,3.2078]
[1755431939777,1.4646,4553.3,4553.2,0.8382]
[1755431940178,1.4646,4553.3,4553.2,1.0189]
[1755431942684,1.4646,4553.3,4553.2,1.2783]
[1755431943082,0.8034,4553.3,4553.2,1.2783]
[1755431943381,1.4646,4553.3,4553.2,1.2783]
[1755431943776,1.4646,4553.3,4553.2,0.8382]
[1755431944077,1.4646,4553.3,4553.2,1.0189]
[1755431944480,1.4646,4553.3,4553.2,1.2783]
[1755431944679,1.0446,4553.3,4553.2,1.2783]
[1755431944984,0.8034,4553.3,4553.2,1.2783]
[1755431945183,1.0446,4553.3,4553.2,1.2783]
[1755431945385,1.2966,4553.3,4553.2,1.2783]
[1755431945978,1.4646,4553.3,4553.2,1.2783]
[1755431950980,3.2078,4553.7,4553.3,0.2483]
[1755431951191,4.5044,4553.7,4553.6,1.2783]
[1755431951487,5.50643671,4553.7,4553.6,1.2783]
[1755431951690,5.5064443,4553.7,4553.6,1.2783]
[1755431952486,5.31606238,4553.7,4553.6,1.2783]
[1755431952790,5.31606238,4553.7,4553.6,1.0189]
[1755431954189,5.31606238,4553.7,4553.6,0.8382]
[1755431954590,5.31606238,4553.7,4553.6,1.0189]
[1755431955690,5.31606238,4553.7,4553.6,0.8382]
[1755431956492,5.50670046,4553.7,4553.6,0.8382]
[1755431957588,5.50676034,4553.7,4553.6,0.8382]
[1755431959898,5.50676034,4553.7,4553.6,1.0185]
[1755431963601,5.31606238,4553.7,4553.6,1.2683]
[1755431963898,5.50697222,4553.7,4553.6,1.2683]
[1755431964301,5.50697198,4553.7,4553.6,1.2683]
[1755431965002,5.50697198,4553.7,4553.6,1.0185]
[1755431965302,5.50697198,4553.7,4553.6,0.8382]
[1755431965796,5.50697198,4553.7,4553.6,1.2683]
[1755431966804,5.50697198,4553.7,4553.6,1.0185]
[1755431967098,5.50697198,4553.7,4553.6,0.8382]
[1755431967800,0.4144,4553.2,4553.1,0.9929]
[1755431967999,1.0368,4553.2,4553.1,1.2456]
[1755431968201,1.4464,4553.2,4553.1,1.2456]
[1755431968503,2.2810892,4553.2,4553.1,1.2456]
[1755431969298,1.63731604,4553.2,4553.1,1.2456]
[1755431969504,2.28099742,4553.2,4553.1,0.9958]
[1755431970097,2.28099742,4553.2,4553.1,1.2456]
[1755431972407,1.77949742,4553.2,4553.1,1.2456]
[1755431972595,1.58858138,4553.2,4553.1,1.2456]
[1755431972803,1.77940803,4553.2,4553.1,1.2456]
[1755431973308,2.03880803,4553.2,4553.1,1.2456]
[1755431973512,2.28090803,4553.2,4553.1,1.2456]
[1755431975210,1.63722665,4553.2,4553.1,1.2456]
[1755431975711,0.96822665,4553.2,4553.1,1.2456]
[1755431975905,0.44732665,4553.2,4553.1,1.2456]
[1755431976105,0.19082665,4553.2,4553.1,1.2456]
[1755431977308,0.55382665,4553.2,4553.1,1.2456]
[1755431978208,0.81032665,4553.2,4553.1,1.2456]
[1755431978912,0.81028697,4553.2,4553.1,1.2456]
[1755431979213,0.19078697,4553.2,4553.1,1.2456]
[1755431981010,0.55378697,4553.2,4553.1,1.2456]
[1755431981511,0.81028697,4553.2,4553.1,1.2456]
[1755431981712,0.6195,4553.2,4553.1,1.2456]
[1755431981912,0.81056918,4553.2,4553.1,1.2456]
[1755431982413,0.81056888,4553.2,4553.1,1.2456]
[1755431985022,0.81057459,4553.2,4553.1,1.2456]
[1755431985521,0.96847459,4553.2,4553.1,1.2456]
[1755431985720,1.22787459,4553.2,4553.1,1.2456]
[1755431987222,0.96847459,4553.2,4553.1,1.2456]
[1755431988725,1.22167459,4553.2,4553.1,1.2456]
[1755431991019,1.47259215,4553.2,4553.1,1.2456]
[1755431991423,1.47259574,4553.2,4553.1,1.2456]
[1755431992526,1.63069574,4553.2,4553.1,1.2456]
[1755431998225,0.19109574,4553.2,4553.1,0.8155]
[1755431998428,0.3211,4553.6,4553.5,0.76721]
[1755431998628,1.61963389,4553.6,4553.5,1.67551]
[1755431998929,0.5676,4553.4,4553.3,1.00432]
[1755431999128,1.61963389,4553.4,4553.3,0.3282]
[1755431999523,1.61963389,4553.4,4553.3,0.581]
[1755431999724,0.3211,4553.2,4553.1,0.4899]
[1755432000026,1.4269,4553.2,4553.1,0.4899]
[1755432000230,1.61962916,4553.2,4553.1,0.8181]
[1755432000533,1.61962916,4553.2,4553.1,0.9984]
[1755432000929,1.61962837,4553.2,4553.1,0.9984]
[1755432001231,1.61962837,4553.2,4553.1,0.8181]
[1755432001526,1.4269,4552.9,4552.8,1.43747]
[1755432001732,1.4269,4552.9,4552.8,0.8181]
[1755432002031,1.4269,4552.9,4552.8,1.2365]
[1755432003024,3.2078,4553.4,4553.2,0.2381]
[1755432003025,0.6017,4553.3,4553.2,0.2381]
[1755432003228,1.61964634,4553.3,4553.2,0.581]
[1755432003428,0.5676,4553.0,4552.9,0.5653]
[1755432003623,1.4269,4553.0,4552.9,0.9837]
[1755432003827,0.3552,4553.8,4553.0,1.33476]
[1755432004034,0.83663702,4553.7,4553.6,1.67549]
[1755432004231,0.2465,4554.3,4554.2,0.2371]
[1755432004433,1.85445021,4554.3,4554.2,0.8034]
[1755432004631,1.60125021,4554.3,4554.2,1.24234]
[1755432004835,0.7647,4554.3,4554.2,1.24234]
[1755432005031,1.0179,4554.3,4554.2,1.67544]
[1755432005330,0.7647,4554.3,4554.2,1.67544]
[1755432005632,3.2078,4555.2,4555.1,0.3282]
[1755432005826,0.5676,4555.2,4555.1,0.8181]
[1755432006028,0.5676,4555.2,4554.7,0.2528]
[1755432006029,0.5676,4554.8,4554.7,0.2528]
[1755432006232,0.5676,4554.6,4554.5,0.4899]
[1755432006428,1.4269,4554.6,4554.5,0.2528]
[1755432006633,3.50387,4554.3,4554.2,0.9984]
[1755432006834,4.36317,4554.3,4554.2,0.9984]
[1755432007136,4.36317,4554.3,4554.2,1.2365]
[1755432009233,0.5676,4553.9,4553.8,0.5653]
[1755432009437,1.4269,4553.9,4553.8,0.8181]
[1755432009626,0.8593,4553.8,4553.5,3.2078]
[1755432009832,0.5676,4553.6,4553.5,0.5653]
[1755432010029,1.4269,4553.6,4553.5,0.5653]
[1755432010227,4.36317,4553.6,4553.5,0.8181]
[1755432010433,4.36317,4553.6,4553.5,0.9984]
[1755432010638,4.36317,4553.6,4553.5,1.2365]
[1755432010935,4.36317,4553.6,4553.5,0.9984]
[1755432011238,2.93627,4553.6,4553.5,1.2365]
[1755432011438,3.18277,4553.6,4553.5,1.2365]
[1755432011638,4.36317,4553.6,4553.5,0.8181]
[1755432011840,4.36317,4553.6,4553.5,0.9984]
[1755432013639,3.85907,4553.6,4553.5,1.2365]
[1755432013840,3.70097,4553.6,4553.5,1.2365]
[1755432014042,3.34577,4553.6,4553.5,1.2365]
[1755432014239,3.70097,4553.6,4553.5,1.2365]
[1755432014433,2.93627,4553.6,4553.5,1.2365]
[1755432020141,3.28837,4553.6,4553.5,1.2365]
[1755432020340,2.93627,4553.6,4553.5,1.2365]
[1755432021443,2.75537,4553.6,4553.5,4.2584]
[1755432022244,1.97537,4553.6,4553.5,4.2584]
[1755432022443,1.97537,4553.6,4553.5,4.2365]
[1755432022841,2.21127,4553.6,4553.5,4.2365]
[1755432023041,1.97537,4553.6,4553.5,5.6994]
[1755432023244,1.97537,4553.6,4553.5,5.755]
[1755432024346,2.21127,4553.6,4553.5,5.755]
[1755432025452,1.41541129,4553.6,4553.5,5.755]
[1755432026548,1.65131129,4553.6,4553.5,5.755]
[1755432026745,1.41541129,4553.6,4553.5,5.755]
[1755432026949,0.9099,4554.4,4554.3,0.43894]
[1755432027250,1.1539,4554.4,4554.3,24.31774]
[1755432027654,1.3898,4554.4,4554.3,24.31774]
[1755432028549,0.2359,4554.4,4554.3,24.31774]
[1755432028746,0.3946,4554.8,4554.7,0.5278]
[1755432028949,0.7467,4554.8,4554.7,21.1079]
[1755432029351,1.3898,4554.8,4554.7,21.1079]
[1755432029753,0.2359,4555.3,4554.7,20.4109]
[1755432029951,0.7593,4555.2,4555.1,0.1692]
[1755432030153,1.3898,4555.2,4555.1,20.3242]
[1755432031252,1.3898,4555.2,4555.1,20.155]
[1755432033955,1.3898,4555.2,4555.1,20.5791]
[1755432034353,1.3898,4555.2,4555.1,20.6675]
[1755432034953,1.3898,4555.2,4555.1,20.5791]
[1755432035746,1.3898,4555.2,4555.1,20.3242]
[1755432035947,1.3898,4555.2,4555.1,20.155]
[1755432036550,1.0377,4554.9,4554.8,3.2078]
[1755432036750,1.3898,4554.9,4554.8,23.3598]
[1755432038654,1.3898,4554.9,4554.8,20.152]
[1755432041762,1.3898,4554.9,4554.8,20.4069]
[1755432041957,1.3898,4554.9,4554.8,20.152]
[1755432042662,1.3898,4554.9,4554.8,20.5761]
[1755432043664,1.3898,4554.9,4554.8,20.152]
[1755432044059,0.3521,4554.2,4554.0,3.2078]
[1755432044260,0.5578,4554.1,4554.0,3.90166]
[1755432044465,1.3898,4554.1,4554.0,23.3558]
[1755432044962,1.3898,4554.1,4554.0,23.6107]
[1755432045358,4.32607,4554.1,4554.0,23.6107]
[1755432045553,4.32607,4554.1,4554.0,23.3558]
[1755432045762,4.32607,4554.1,4553.6,0.2549]
[1755432045763,0.5578,4553.7,4553.6,0.2549]
[1755432046067,1.3898,4553.7,4553.6,20.4039]
[1755432046459,1.3898,4553.7,4553.6,20.149]
[1755432048167,1.4516,4553.5,4553.4,23.3558]
[1755432048660,1.4516,4553.5,4553.4,20.148]
[1755432048866,0.5746,4553.5,4553.0,20.147]
[1755432049057,1.0702,4553.1,4553.0,20.147]
[1755432049258,1.4516,4553.1,4553.0,20.147]
[1755432049466,1.4516,4553.1,4553.0,20.3852]
[1755432049759,1.4516,4553.1,4553.0,20.147]
[1755432050361,4.38787,4553.1,4553.0,20.147]
[1755432050559,4.38787,4553.1,4553.0,20.3852]
[1755432050766,4.38787,4553.1,4553.0,20.5497]
[1755432055468,4.38787,4553.1,4553.0,20.6388]
[1755432056466,3.17387,4553.1,4553.0,20.6388]
[1755432056666,2.93627,4553.1,4553.0,20.7164]
[1755432059766,2.93627,4553.1,4553.0,20.6945]
[1755432059972,3.17387,4553.1,4553.0,20.7164]
[1755432060165,3.17387,4553.1,4553.0,20.6945]
[1755432060474,4.38787,4553.1,4553.0,20.6388]
[1755432062469,3.33247,4553.1,4553.0,20.6388]
[1755432062662,3.17387,4553.1,4553.0,20.6388]
[1755432062867,3.17387,4553.1,4553.0,20.6945]
[1755432063270,3.33247,4553.1,4553.0,20.6388]
[1755432063470,3.71387,4553.1,4553.0,20.6388]
[1755432063970,3.33247,4553.1,4553.0,20.6945]
[1755432064176,3.17387,4553.1,4553.0,20.6945]
[1755432066765,2.93627,4553.1,4553.0,20.6945]
[1755432067577,3.17387,4553.1,4553.0,22.3945]
[1755432067878,4.38787,4553.1,4553.0,20.6378]
[1755432068081,4.38787,4553.1,4553.0,20.6368]
[1755432076079,4.12987,4553.1,4553.0,20.6368]
[1755432076283,4.38787,4553.1,4553.0,20.6368]
[1755432078587,4.38787,4553.1,4553.0,20.5477]
[1755432078888,1.4386,4552.5,4552.4,32.05811]
[1755432079084,1.4386,4552.5,4552.4,52.19811]
[1755432080380,4.37487,4552.5,4552.4,52.19811]
[1755432080683,4.37487,4552.5,4552.4,52.45661]
[1755432081879,4.37487,4552.5,4552.4,31.66801]
[1755432082082,0.0219,4552.3,4550.8,20.57927]
[1755432082281,0.3829,4550.9,4550.8,20.3772]
[1755432082483,0.3829,4550.9,4550.4,0.2372]
[1755432082788,2.93627,4552.5,4550.1,0.09889784]
[1755432082789,0.3829,4550.3,4550.1,0.09889784]
[1755432082984,0.3829,4550.2,4550.1,0.09889784]
[1755432083184,0.37891855,4550.2,4550.1,20.23889784]
[1755432083487,0.37891855,4550.2,4550.1,20.73459784]
[1755432083896,0.37891855,4550.2,4550.1,20.47609784]
[1755432084589,0.37891855,4550.2,4550.1,20.73459784]
[1755432084784,0.37891855,4550.2,4550.1,21.69729784]
[1755432085286,0.1717,4550.2,4550.1,21.69729784]
[1755432086277,0.1717,4550.7,4550.6,0.78108]
[1755432086481,0.1717,4550.9,4550.8,1.01677]
[1755432086681,0.1717,4550.9,4550.8,21.15977]
[1755432086881,0.1717,4550.9,4550.8,22.04067]
[1755432087488,0.1717,4550.9,4550.8,21.22717]
[1755432087686,0.3789,4550.9,4550.8,20.81947]
[1755432087882,0.3789,4550.9,4550.8,21.07797]
[1755432088090,0.3789,4550.9,4550.8,22.04067]
[1755432088488,0.3789,4550.9,4550.8,20.143]
[1755432089186,0.3789,4550.9,4550.8,20.3802]
[1755432089392,0.3789,4550.9,4550.8,21.6014]
[1755432089587,0.1717,4550.9,4550.8,21.6014]
[1755432090291,0.3789,4550.9,4550.8,21.6014]
[1755432090491,0.1717,4550.9,4550.8,21.6014]
[1755432091193,0.3789,4550.9,4550.8,21.6014]
[1755432091396,0.1717,4550.9,4550.3,3.2078]
[1755432091587,0.1717,4550.2,4550.1,0.59459784]
[1755432091787,0.3789,4550.2,4550.1,20.74059784]
[1755432092992,0.3789,4550.2,4550.1,21.31809784]
[1755432093292,0.3789,4550.2,4550.1,21.70329784]
[1755432094093,0.1717,4550.2,4550.1,21.70329784]
[1755432096398,0.3789,4550.2,4550.1,21.70329784]
[1755432096698,0.1717,4550.2,4550.1,21.70329784]
[1755432097095,3.2078,4551.4,4550.3,1.09829]
[1755432097297,0.1717,4551.0,4550.9,1.4584]
[1755432097600,0.1717,4551.0,4550.9,21.6054]
[1755432098103,0.1717,4551.0,4550.9,20.147]
[1755432098398,0.3789,4551.0,4550.9,20.147]
[1755432098600,3.10797,4551.0,4550.9,21.2202]
[1755432098798,3.10797,4551.0,4550.9,21.6054]
[1755432099297,2.93627,4551.0,4550.9,21.6054]
[1755432100802,3.10797,4551.0,4550.9,21.6054]
[1755432101706,2.93627,4551.0,4550.9,21.6054]